fUST/lending_fUST_20250820
["ID","MTS","AMOUNT","RATE_DAILY","PERIOD"]
[380306735,1755651055993,-432.1534747,0.00024164,2]
[380306736,1755651056004,-784.944312,0.00024164,2]
[380306737,1755651056013,-12685.85563623,0.000242,7]
[380306738,1755651056022,-1000.0,0.0002424,5]
[380306739,1755651056032,-155.2,0.00024299,7]
[380306740,1755651056041,-1012.23,0.00024301,7]
[380306741,1755651056050,-264.0,0.00024329,2]
[380306742,1755651056059,-264.0,0.00024332,2]
[380306743,1755651056068,-151.0,0.00024333,7]
[380306744,1755651056077,-480.0,0.00024336,2]
[380306745,1755651056086,-151.0,0.00024338,7]
[380306746,1755651056095,-960.0,0.00024352,2]
[380306747,1755651056104,-1588.31,0.00024383,2]
[380306748,1755651056113,-480.0,0.00024383,2]
[380306749,1755651056123,-480.0,0.00024383,2]
[380306750,1755651056132,-480.0,0.00024383,2]
[380306751,1755651056142,-519.20508115,0.00024383,2]
[380306752,1755651056151,-322.80735864,0.00024383,2]
[380306753,1755651056160,-155.2,0.00024399,7]
[380306754,1755651056170,-417.15472785,0.000244,3]
[380306755,1755651056179,-843.93972674,0.000244,3]
[380306756,1755651056188,-160.0,0.000244,3]
[380306757,1755651056200,-160.0,0.000244,3]
[380306758,1755651056209,-160.0,0.000244,7]
[380306759,1755651056219,-375.88899365,0.000244,7]
[380306760,1755651056229,-1012.23,0.00024401,7]
[380306761,1755651056238,-151.0,0.00024401,7]
[380306762,1755651056248,-151.0,0.00024401,7]
[380306763,1755651056257,-151.0,0.00024401,7]
[380306764,1755651056266,-1520.44,0.00024405,2]
[380306765,1755651056276,-1059.27,0.00024405,2]
[380306766,1755651056286,-429.43,0.00024405,2]
[380306767,1755651056295,-659.7930276,0.00024495,2]
[380306768,1755651056305,-155.2,0.00024499,7]
[380306769,1755651056314,-1012.23,0.00024501,7]
[380306770,1755651056323,-1240.33,0.00024575,2]
[380306771,1755651056332,-151.0,0.00024575,7]
[380306772,1755651056341,-151.0,0.00024575,7]
[380306773,1755651056350,-151.0,0.00024575,7]
[380306774,1755651056360,-151.0,0.00024575,7]
[380306775,1755651056369,-151.0,0.00024575,7]
[380306776,1755651056378,-151.0,0.00024575,7]
[380306777,1755651056387,-277.64354,0.00024575,7]
[380306778,1755651056397,-151.0,0.00024575,7]
[380306779,1755651056406,-202.181416,0.00024575,7]
[380306780,1755651056415,-580.8939941,0.00024575,2]
[380306781,1755651056424,-293.8943201,0.00024575,2]
[380306782,1755651056433,-160.842982,0.00024575,2]
[380306783,1755651056443,-266.4806457,0.00024575,2]
[380306784,1755651056452,-293.8943201,0.00024575,2]
[380306785,1755651056461,-160.842982,0.00024575,2]
[380306786,1755651056471,-153.0,0.00024575,2]
[380306787,1755651056480,-293.8943201,0.00024575,2]
[380306788,1755651056489,-160.842982,0.00024575,2]
[380306789,1755651056498,-160.842982,0.00024575,2]
[380306790,1755651056507,-293.8943201,0.00024575,2]
[380306791,1755651056516,-153.0,0.00024575,2]
[380306792,1755651056525,-160.842982,0.00024575,2]
[380306793,1755651056534,-293.8943201,0.00024575,2]
[380306794,1755651056543,-160.842982,0.00024575,2]
[380306795,1755651056551,-293.8943201,0.00024575,2]
[380306796,1755651056560,-160.842982,0.00024575,2]
[380306797,1755651056569,-153.0,0.00024575,2]
[380306798,1755651056578,-160.842982,0.00024575,2]
[380306799,1755651056587,-293.8943201,0.00024575,2]
[380306800,1755651056595,-153.0,0.00024575,2]
[380306801,1755651056605,-293.8943201,0.00024575,2]
[380306802,1755651056614,-160.842982,0.00024575,2]
[380306803,1755651056624,-293.8943201,0.00024575,2]
[380306804,1755651056633,-160.842982,0.00024575,2]
[380306805,1755651056642,-293.8943201,0.00024575,2]
[380306806,1755651056651,-160.842982,0.00024575,2]
[380306807,1755651056660,-293.8943201,0.00024575,2]
[380306808,1755651056669,-306.0,0.00024575,2]
[380306809,1755651056678,-213.1162964,0.00024575,2]
[380306810,1755651056687,-160.842982,0.00024575,2]
[380306811,1755651056779,-160.842982,0.00024575,2]
[380306812,1755651056789,-153.0,0.00024575,2]
[380306813,1755651056798,-160.842982,0.00024575,2]
[380306814,1755651056807,-160.842982,0.00024575,2]
[380306815,1755651056817,-160.842982,0.00024575,2]
[380306816,1755651056826,-155.2,0.00024599,7]
[380306817,1755651056835,-1012.23,0.00024601,7]
[380306818,1755651056844,-823.0,0.00024602,2]
[380306819,1755651056854,-480.0,0.0002461,2]
[380306820,1755651056864,-972.0,0.00024635,2]
[380306821,1755651056874,-637.0,0.00024635,2]
[380306822,1755651056883,-2153.0,0.00024635,2]
[380306823,1755651056892,-408.0,0.00024635,2]
[380306824,1755651056901,-1588.31,0.00024657,2]
[380306825,1755651056912,-480.0,0.00024657,2]
[380306826,1755651056921,-480.0,0.00024657,2]
[380306827,1755651056930,-480.0,0.00024657,2]
[380306828,1755651056942,-150.0,0.00024658,2]
[380306829,1755651056952,-4000.0,0.00024675,2]
[380306830,1755651056961,-1520.44,0.00024679,2]
[380306831,1755651056970,-1059.27,0.00024679,2]
[380306832,1755651056979,-155.2,0.00024699,7]
[380306833,1755651056989,-7130.98892477,0.00024699,2]
[380306834,1755651056998,-12221.73587711,0.000247,2]
[380306835,1755651057008,-1012.23,0.00024701,7]
[380306836,1755651057017,-264.0,0.0002475,2]
[380306837,1755651057026,-155.29601,0.00024763,2]
[380306838,1755651057036,-500.0,0.00024773,2]
[380306839,1755651057045,-250.0,0.00024773,2]
[380306840,1755651057054,-264.0,0.00024773,2]
[380306841,1755651057064,-1240.33,0.00024798,2]
[380306842,1755651057073,-155.2,0.00024799,7]
[380306843,1755651057082,-480.0,0.00024799,2]
[380306844,1755651057092,-480.0,0.00024799,2]
[380306845,1755651057101,-480.0,0.00024799,2]
[380306846,1755651057110,-480.0,0.00024799,2]
[380306847,1755651057120,-480.0,0.00024799,2]
[380306848,1755651057130,-480.0,0.00024799,2]
[380306849,1755651057139,-185.01763489,0.00024799,2]
[380306850,1755651057148,-480.0,0.00024799,2]
[380306851,1755651057157,-480.0,0.00024799,2]
[380306852,1755651057166,-480.0,0.00024799,2]
[380306853,1755651057176,-480.0,0.00024799,2]
[380306854,1755651057186,-279.3138424,0.00024799,2]
[380306855,1755651057196,-480.0,0.00024799,2]
[380306856,1755651057206,-480.0,0.00024799,2]
[380306857,1755651057215,-480.0,0.00024799,2]
[380306858,1755651057224,-276.94824404,0.00024799,2]
[380306859,1755651057233,-480.0,0.00024799,2]
[380306860,1755651057242,-151.0,0.00024799,7]
[380306861,1755651057251,-151.0,0.00024799,7]
[380306862,1755651057260,-151.0,0.00024799,7]
[380306863,1755651057270,-151.0,0.00024799,7]
[380306864,1755651057279,-151.0,0.00024799,7]
[380306865,1755651057288,-151.0,0.00024799,7]
[380306866,1755651057297,-151.0,0.00024799,7]
[380306867,1755651057307,-151.0,0.00024799,7]
[380306868,1755651057316,-231.610135,0.00024799,7]
[380306869,1755651057326,-151.0,0.00024799,7]
[380306870,1755651057335,-151.0,0.00024799,7]
[380306871,1755651057344,-163.587686,0.00024799,7]
[380306872,1755651057353,-1240.33,0.00024799,2]
[380306873,1755651057362,-480.0,0.00024799,2]
[380306874,1755651057371,-480.0,0.00024799,2]
[380306875,1755651057379,-481.33138643,0.00024799,2]
[380306876,1755651057388,-480.0,0.00024799,2]
[380306877,1755651057397,-480.0,0.00024799,2]
[380306878,1755651057407,-480.0,0.00024799,2]
[380306879,1755651057416,-480.0,0.00024799,2]
[380306880,1755651057424,-480.0,0.00024799,2]
[380306881,1755651057434,-480.0,0.00024799,2]
[380306882,1755651057444,-6628.98,0.000248,7]
[380306883,1755651057453,-370000.0,0.000248,2]
[380306884,1755651057463,-226.36618523,0.000248,7]
[380306885,1755651057473,-151.0,0.000248,7]
[380306886,1755651057482,-151.0,0.000248,7]
[380306887,1755651057492,-151.0,0.000248,7]
[380306888,1755651057501,-151.0,0.000248,7]
[380306889,1755651057511,-151.0,0.000248,7]
[380306890,1755651057520,-151.0,0.000248,7]
[380306891,1755651057529,-151.0,0.000248,7]
[380306892,1755651057538,-151.0,0.000248,7]
[380306893,1755651057548,-151.0,0.000248,7]
[380306894,1755651057557,-151.0,0.000248,7]
[380306895,1755651057566,-270.012,0.000248,7]
[380306896,1755651057575,-417.15472785,0.000248,7]
[380306897,1755651057585,-151.0,0.000248,7]
[380306898,1755651057594,-151.0,0.000248,7]
[380306899,1755651057604,-151.0,0.000248,7]
[380306900,1755651057613,-151.0,0.000248,7]
[380306901,1755651057623,-151.0,0.000248,7]
[380306902,1755651057633,-843.93972674,0.000248,7]
[380306903,1755651057642,-160.0,0.000248,7]
[380306904,1755651057651,-185.497068,0.000248,7]
[380306905,1755651057660,-185.497068,0.000248,7]
[380306906,1755651057669,-185.497068,0.000248,7]
[380306907,1755651057678,-185.497068,0.000248,7]
[380306908,1755651057687,-151.0,0.000248,7]
[380306909,1755651057698,-151.0,0.000248,7]
[380306910,1755651057708,-151.0,0.000248,7]
[380306911,1755651057717,-263.402029,0.000248,7]
[380306912,1755651057726,-151.0,0.000248,7]
[380306913,1755651057735,-456.916408,0.000248,7]
[380306914,1755651057744,-456.916408,0.000248,7]
[380306915,1755651057753,-456.916408,0.000248,7]
[380306916,1755651057762,-456.916408,0.000248,7]
[380306917,1755651057772,-151.0,0.000248,7]
[380306918,1755651057781,-151.0,0.000248,7]
[380306919,1755651057789,-1012.23,0.00024801,7]
[380306920,1755651057799,-18502.69577858,0.00024834,2]
[380306921,1755651057808,-151.0,0.00024834,2]
[380306922,1755651057817,-264.0,0.00024839,2]
[380306923,1755651057826,-306.0,0.00024849,2]
[380306924,1755651057835,-157.701741,0.00024864,14]
[380306925,1755651057844,-600.0,0.00024864,2]
[380306926,1755651057854,-264.0,0.00024866,2]
[380306927,1755651057865,-500.0,0.00024873,2]
[380306928,1755651057876,-480.0,0.00024884,2]
[380306929,1755651057887,-152.373275,0.0002489,7]
[380306930,1755651057895,-151.0,0.0002489,7]
[380306931,1755651057905,-1240.33,0.00024898,2]
[380306932,1755651057914,-1240.33,0.00024899,2]
[380306933,1755651057924,-1240.33,0.00024899,2]
[380306934,1755651057933,-151.0,0.000249,7]
[380306935,1755651057944,-35619.9,0.000249,2]
[380306936,1755651057955,-151.0,0.000249,7]
[380306937,1755651057964,-151.0,0.000249,7]
[380306938,1755651057974,-151.0,0.000249,7]
[380306939,1755651057983,-151.0,0.000249,7]
[380306940,1755651057992,-234.050364,0.000249,7]
[380306941,1755651058002,-151.0,0.000249,7]
[380306942,1755651058011,-151.0,0.000249,7]
[380306943,1755651058020,-151.0,0.000249,7]
[380306944,1755651058029,-151.0,0.000249,7]
[380306945,1755651058039,-151.0,0.000249,7]
[380306946,1755651058049,-151.0,0.000249,7]
[380306947,1755651058058,-151.0,0.000249,7]
[380306948,1755651058068,-722907.072841,0.000249,2]
[380306949,1755651058082,-185.497068,0.000249,7]
[380306950,1755651058093,-185.497068,0.000249,7]
[380306951,1755651058102,-185.497068,0.000249,7]
[380306952,1755651058117,-185.497075,0.000249,7]
[380306953,1755651058127,-151.0,0.000249,7]
[380306954,1755651058136,-151.0,0.000249,7]
[380306955,1755651058145,-151.0,0.000249,7]
[380306956,1755651058154,-151.0,0.000249,7]
[380306957,1755651058163,-163.33011413,0.000249,2]
[380306958,1755651058172,-1060.0,0.000249,2]
[380306959,1755651058181,-456.916408,0.000249,7]
[380306960,1755651058191,-456.916408,0.000249,7]
[380306961,1755651058201,-456.916408,0.000249,7]
[380306962,1755651058212,-456.91640872,0.000249,7]
[380306963,1755651058222,-151.0,0.000249,7]
[380306964,1755651058231,-1012.23,0.00024901,7]
[380306965,1755651058241,-1400.0,0.00024921,2]
[380306966,1755651058250,-1588.31,0.00024931,2]
[380306967,1755651058259,-357.98478643,0.00024931,2]
[380306968,1755651058269,-480.0,0.00024931,2]
[380306969,1755651058279,-480.0,0.00024931,2]
[380306970,1755651058288,-151.08601362,0.00024932,2]
[380306971,1755651058297,-151.0,0.00024932,2]
[380306972,1755651058306,-151.0,0.00024932,2]
[380306973,1755651058315,-859.0,0.00024932,2]
[380306974,1755651058324,-198.0,0.00024932,2]
[380306975,1755651058333,-151.0,0.00024932,2]
[380306976,1755651058343,-151.0,0.00024932,2]
[380306977,1755651058351,-151.0,0.00024932,2]
[380306978,1755651058361,-198.0,0.00024932,2]
[380306979,1755651058370,-286.61748694,0.00024932,2]
[380306980,1755651058379,-500.0,0.00024932,2]
[380306981,1755651058389,-297.0,0.00024932,2]
[380306982,1755651058398,-151.0,0.00024932,2]
[380306983,1755651058408,-228.6204456,0.00024932,2]
[380306984,1755651058417,-739.0,0.00024943,7]
[380306985,1755651058427,-1520.44,0.00024953,2]
[380306986,1755651058436,-1059.27,0.00024953,2]
[380306987,1755651058446,-7130.98892475,0.00024956,2]
[380306988,1755651058455,-1240.33,0.0002496,2]
[380306989,1755651058465,-1240.33,0.0002496,2]
[380306990,1755651058474,-1240.33,0.0002496,2]
[380306991,1755651058483,-1545.87345535,0.00024973,2]
[380306992,1755651058492,-687.30436492,0.00024973,2]
[380306993,1755651058501,-3731.87956765,0.00024973,2]
[380306994,1755651058510,-7293.8700191,0.00024973,2]
[380306995,1755651058519,-450.21509455,0.00024973,2]
[380306996,1755651058608,-484.47722727,0.00024973,2]
[380306997,1755651058617,-1937.90890907,0.00024973,2]
[380306998,1755651058627,-1799.05951781,0.00024973,2]
[380306999,1755651058636,-4355.93475037,0.00024973,2]
[380307000,1755651058645,-1240.33,0.00024989,2]
[380307001,1755651058655,-1240.33,0.00024999,2]
[380307002,1755651058663,-1240.33,0.00024999,2]
[380307003,1755651058673,-1240.33,0.00024999,2]
[380307004,1755651058682,-1240.33,0.00024999,2]
[380307005,1755651058691,-1240.49803361,0.00024999,2]
[380307006,1755651058700,-29690.53798499,0.00025,2]
[380307007,1755651058709,-302.34282285,0.00025,2]
[380307008,1755651058718,-150.5,0.00025,2]
[380307009,1755651058727,-1012.23,0.00025001,7]
[380307010,1755651058736,-264.0,0.00025006,2]
[380307011,1755651058746,-411.18116709,0.00025008,2]
[380307012,1755651058755,-548.0,0.00025053,7]
[380307013,1755651058765,-739.0,0.00025071,2]
[380307014,1755651058774,-480.0,0.00025073,2]
[380307015,1755651058784,-480.0,0.00025073,2]
[380307016,1755651058792,-480.0,0.00025073,2]
[380307017,1755651058802,-480.0,0.00025073,2]
[380307018,1755651058811,-480.0,0.00025073,2]
[380307019,1755651058820,-480.0,0.00025073,2]
[380307020,1755651058830,-397.65643213,0.00025073,2]
[380307021,1755651058839,-480.0,0.00025073,2]
[380307022,1755651058848,-454.76443295,0.00025073,2]
[380307023,1755651058858,-480.0,0.00025073,2]
[380307024,1755651058870,-740.12113205,0.000251,2]
[380307025,1755651058879,-645.0,0.000251,2]
[380307026,1755651058888,-1012.23,0.00025101,7]
[380307027,1755651058897,-600.0,0.00025123,2]
[380307028,1755651058907,-864.3069494,0.00025123,2]
[380307029,1755651058916,-576.1126748,0.00025158,2]
[380307030,1755651058926,-2230.33,0.000252,7]
[380307031,1755651058935,-16366.68,0.000252,7]
[380307032,1755651058945,-1990.946546,0.000252,5]
[380307033,1755651058954,-1000.0,0.000252,2]
[380307034,1755651058963,-203.882797,0.000252,2]
[380307035,1755651058972,-1012.23,0.00025201,7]
[380307036,1755651058981,-1588.31,0.00025205,2]
[380307037,1755651058990,-309.65901871,0.00025205,2]
[380307038,1755651059000,-334.09022796,0.00025205,2]
[380307039,1755651059010,-250.0,0.00025205,2]
[380307040,1755651059020,-859.0,0.00025206,2]
[380307041,1755651059030,-151.0,0.00025206,2]
[380307042,1755651059040,-151.0,0.00025206,2]
[380307043,1755651059057,-500.0,0.00025206,2]
[380307044,1755651059067,-151.0,0.00025206,2]
[380307045,1755651059075,-7130.98892475,0.00025212,2]
[380307046,1755651059085,-4000.0,0.00025222,2]
[380307047,1755651059094,-1520.44,0.00025227,2]
[380307048,1755651059103,-1059.27,0.00025227,2]
[380307049,1755651059113,-548.0,0.00025236,2]
[380307050,1755651059123,-155.29601,0.0002525,15]
[380307051,1755651059132,-500.0,0.00025253,9]
[380307052,1755651059141,-548.0,0.00025271,2]
[380307053,1755651059153,-1012.23,0.00025301,7]
[380307054,1755651059167,-740.12113198,0.00025312,2]
[380307055,1755651059176,-1000.0,0.00025321,2]
[380307056,1755651059187,-382.0,0.00025341,2]
[380307057,1755651059198,-480.0,0.00025347,2]
[380307058,1755651059207,-600.0,0.00025397,20]
[380307059,1755651059216,-160.842982,0.00025397,2]
[380307060,1755651059226,-160.842982,0.00025397,2]
[380307061,1755651059235,-160.842982,0.00025397,2]
[380307062,1755651059245,-1012.23,0.00025401,7]
[380307063,1755651059254,-525.9554681,0.00025421,2]
[380307064,1755651059263,-548.0,0.00025435,2]
[380307065,1755651059272,-1160.0,0.00025448,2]
[380307066,1755651059282,-7130.98892475,0.00025469,2]
[380307067,1755651059291,-207.0,0.0002547,2]
[380307068,1755651059301,-1588.41601172,0.00025479,2]
[380307069,1755651059310,-859.0,0.0002548,2]
[380307070,1755651059319,-151.0,0.0002548,2]
[380307071,1755651059329,-500.0,0.0002548,2]
[380307072,1755651059338,-198.0,0.0002548,2]
[380307073,1755651059348,-2000.0,0.000255,2]
[380307074,1755651059357,-3002.57398099,0.000255,2]
[380307075,1755651059366,-1000.0,0.000255,2]
[380307076,1755651059377,-155.29601,0.000255,15]
[380307077,1755651059387,-1012.23,0.00025501,7]
[380307078,1755651059396,-1520.57412804,0.00025501,2]
[380307079,1755651059405,-1059.29940471,0.00025501,2]
[380307080,1755651059414,-155.29601,0.00025515,2]
[380307081,1755651059423,-740.12113198,0.00025524,2]
[380307082,1755651059433,-2200.0,0.00025561,2]
[380307083,1755651059443,-1012.23,0.00025601,7]
[380307084,1755651059453,-382.0,0.00025622,2]
[380307085,1755651059462,-548.0,0.00025649,2]
[380307086,1755651059472,-589.05297874,0.00025683,4]
[380307087,1755651059481,-1012.23,0.00025701,7]
[380307088,1755651059490,-7130.98892475,0.00025725,2]
[380307089,1755651059500,-740.12113198,0.00025736,2]
[380307090,1755651059509,-155.29601,0.0002575,15]
[380307091,1755651059518,-350.0,0.00025753,2]
[380307092,1755651059527,-859.0,0.00025754,2]
[380307093,1755651059537,-500.0,0.00025754,2]
[380307094,1755651059546,-3773.28533634,0.0002578,5]
[380307095,1755651059556,-1012.23,0.00025801,7]
[380307096,1755651059565,-548.0,0.00025854,2]
[380307097,1755651059574,-1094.43579841,0.00025868,2]
[380307098,1755651059584,-207.0,0.0002588,2]
[380307099,1755651059593,-378468.5067233,0.000259,14]
[380307100,1755651059681,-49045.63971639,0.000259,14]
[380307101,1755651059770,-480.0,0.00019199,2]
[380307102,1755651059780,-251.15478048,0.00019473,2]
[380307103,1755651059790,-268.84521952,0.00019726,2]
[380307104,1755651059802,-202.7335927,0.00019726,2]
[380307105,1755651059812,-153.88,0.00020547,2]
[380307106,1755651059822,-480.0,0.00020775,2]
[380307107,1755651059832,-480.0,0.00021049,2]
[380307108,1755651059842,-232.21311493,0.00023,3]
[380307109,1755651059851,-232.21311493,0.00024,7]
[380307110,1755651059862,-41872.01443479,0.000259,14]
[380307111,1755651059879,-135833.02760411,0.000259,14]
[380307112,1755651060017,-480.0,0.00020775,2]
[380307113,1755651060027,-164.47246683,0.00021008,2]
[380307114,1755651060036,-232.21311493,0.00023,3]
[380307115,1755651060046,-232.21311493,0.00024,7]
[380307116,1755651060056,-145082.92713269,0.000259,14]
[380307117,1755651060065,-280210.52395598,0.000259,14]
[380307118,1755651060080,-432.1534747,0.00023205,2]
[380307119,1755651060090,-785.3516538,0.000259,14]
[380307120,1755651060212,-480.0,0.00019178,2]
[380307121,1755651060223,-1633.59864182,0.00019626,2]
[380307122,1755651060235,-3164.83552184,0.00019626,2]
[380307123,1755651060245,-562.8256375,0.000259,14]
[380307124,1755651060260,-2386.76990618,0.000259,14]
[380307125,1755651060272,-500.0,0.000259,14]
[380307126,1755651060283,-4446.74743035,0.000259,14]
[380307127,1755651060294,-2931.13645142,0.000259,14]
[380307128,1755651297163,530.0,0.00028767,120]
[380307129,1755651475796,159.0,0.000287,120]
[380307130,1755651477144,159.0,0.000287,120]
[380307131,1755651764367,233.613314,0.00013699,2]
[380307132,1755652157167,-588.0,0.00018899,2]
[380307150,1755652232372,-163.80239239,0.00018871,2]
[380307152,1755652232382,-2163.75910927,0.00018899,2]
[380307154,1755652232391,-163.80239239,0.00018899,2]
[380307156,1755652232401,-160.0,0.00018971,2]
[380307158,1755652232410,-485.0,0.00018997,2]
[380307159,1755652232420,-300.0,0.00018997,2]
[380307160,1755652232429,-300.0,0.00018997,2]
[380307161,1755652232438,-1200.0,0.00018997,2]
[380307162,1755652232447,-1000.0,0.00018998,2]
[380307163,1755652232456,-1000.0,0.00018998,2]
[380307164,1755652232465,-12.263147,0.00018998,2]
[380307165,1755652232477,-848.6754484,0.00018998,2]
[380307166,1755652232490,-139.0614046,0.00018998,2]
[380307167,1755652232499,-1000.0,0.00018998,2]
[380307168,1755652232510,-1000.0,0.00018998,2]
[380307169,1755652232519,-1000.0,0.00018998,2]
[380307171,1755652232529,-48925.30272903,0.00018999,2]
[380307172,1755652232540,-1074.69727097,0.00018999,2]
[380307173,1755652232549,-1000.0,0.00018999,2]
[380307174,1755652232558,-1000.0,0.00018999,2]
[380307175,1755652232567,-1000.0,0.00018999,2]
[380307176,1755652232576,-1000.0,0.00018999,2]
[380307177,1755652232585,-1000.0,0.00018999,2]
[380307178,1755652232594,-1000.0,0.00018999,2]
[380307179,1755652232603,-1000.0,0.00018999,2]
[380307180,1755652232612,-1000.0,0.00018999,2]
[380307181,1755652232621,-1000.0,0.00018999,2]
[380307182,1755652232630,-1000.0,0.00018999,2]
[380307183,1755652232639,-1000.0,0.00018999,2]
[380307184,1755652232648,-364.78803361,0.00018999,2]
[380307185,1755652232657,-12628.7,0.00019,2]
[380307186,1755652232666,-7316.37787003,0.00019,2]
[380307222,1755652238176,-8958.92212997,0.00019,2]
[380307224,1755652238185,-500.0,0.00019176,2]
[380307226,1755652238195,-304.16473602,0.00019176,2]
[380307228,1755652238205,-281.76700273,0.00019176,2]
[380307230,1755652238214,-480.0,0.00019178,2]
[380307232,1755652238223,-189.87757234,0.00019178,2]
[380307234,1755652238233,-420.0,0.00019178,2]
[380307236,1755652238242,-233.38975648,0.00019178,2]
[380307238,1755652238255,-480.0,0.00019178,2]
[380307240,1755652238265,-480.0,0.00019178,2]
[380307242,1755652238274,-278.6494765,0.00019178,2]
[380307244,1755652238283,-481.45701498,0.00019178,2]
[380307246,1755652238294,-480.0,0.00019178,2]
[380307248,1755652238303,-480.0,0.00019178,2]
[380307250,1755652238312,-546.09637653,0.00019178,2]
[380307253,1755652238322,-480.0,0.00019178,2]
[380307256,1755652238331,-480.0,0.00019178,2]
[380307258,1755652238341,-480.0,0.00019178,2]
[380307276,1755652238495,-480.0,0.00019178,2]
[380307278,1755652238505,-480.0,0.00019178,2]
[380307280,1755652238515,-398.76261274,0.00019178,2]
[380307282,1755652238525,-286.61748694,0.00019178,2]
[380307284,1755652238535,-480.0,0.00019178,2]
[380307286,1755652238544,-480.0,0.00019178,2]
[380307288,1755652238554,-480.0,0.00019178,2]
[380307290,1755652238563,-480.0,0.00019178,2]
[380307292,1755652238572,-480.0,0.00019178,2]
[380307294,1755652238581,-480.0,0.00019178,2]
[380307296,1755652238591,-480.0,0.00019178,2]
[380307298,1755652238601,-480.0,0.00019178,2]
[380307300,1755652238610,-480.0,0.00019178,2]
[380307302,1755652238619,-480.0,0.00019178,2]
[380307304,1755652238628,-480.0,0.00019178,2]
[380307306,1755652238637,-480.0,0.00019178,2]
[380307309,1755652238647,-519.97945267,0.00019178,2]
[380307310,1755652238656,-480.0,0.00019178,2]
[380307312,1755652238665,-506.63873082,0.00019178,2]
[380307314,1755652238674,-466.06871574,0.00019178,2]
[380307316,1755652238683,-480.0,0.00019178,2]
[380307319,1755652238692,-480.0,0.00019178,2]
[380307320,1755652238702,-151.0,0.00019178,2]
[380307322,1755652238711,-480.0,0.00019178,2]
[380307324,1755652238720,-198.0,0.00019178,2]
[380307327,1755652238729,-151.0,0.00019178,2]
[380307329,1755652238739,-151.0,0.00019178,2]
[380307330,1755652238747,-151.0,0.00019178,2]
[380307332,1755652238758,-480.0,0.00019178,2]
[380307334,1755652238767,-461.34888444,0.00019178,2]
[380307336,1755652238777,-480.0,0.00019178,2]
[380307338,1755652238786,-480.0,0.00019178,2]
[380307340,1755652238796,-480.0,0.00019178,2]
[380307343,1755652238809,-480.0,0.00019178,2]
[380307345,1755652238818,-480.0,0.00019178,2]
[380307347,1755652238828,-480.0,0.00019178,2]
[380307349,1755652238837,-480.0,0.00019178,2]
[380307350,1755652238846,-480.0,0.00019178,2]
[380307352,1755652238855,-480.0,0.00019178,2]
[380307355,1755652238865,-480.0,0.00019178,2]
[380307356,1755652238874,-480.0,0.00019178,2]
[380307358,1755652238884,-480.0,0.00019178,2]
[380307360,1755652238893,-480.0,0.00019178,2]
[380307363,1755652238903,-193.32584484,0.00019178,2]
[380307364,1755652238912,-480.0,0.00019178,2]
[380307367,1755652238922,-480.0,0.00019178,2]
[380307369,1755652238931,-480.0,0.00019178,2]
[380307371,1755652238940,-480.0,0.00019178,2]
[380307373,1755652238950,-480.0,0.00019178,2]
[380307375,1755652238959,-537.0,0.00019178,2]
[380307377,1755652238968,-480.0,0.00019178,2]
[380307378,1755652238978,-480.0,0.00019178,2]